bitfinex/quotes_ETHUSD_20220310
["timestamp","ask_amount","ask_price","bid_price","bid_amount"]
[1646916938702,3.9363691,2603.9,2603.3,1.92093]
[1646916938905,0.385,2603.7,2603.3,1.92093]
[1646916939100,0.05989296,2603.5,2603.3,1.92093]
[1646916939303,0.05989296,2603.5,2603.2,0.96065]
[1646916939699,1.15763448,2603.4,2603.2,0.96065]
[1646916940102,0.06209128,2603.8,2603.2,0.96065]
[1646916941109,0.06209128,2603.8,2603.2,1.51365]
[1646916941902,3.5,2603.9,2603.2,1.51365]
[1646916942852,3.54913515,2604.1,2603.2,0.35965]
[1646916943152,3.54913515,2604.1,2603.2,0.43136841]
[1646916943352,7.04913515,2604.1,2603.2,0.43136841]
[1646916943856,0.05107436,2604.0,2603.2,0.43136841]
[1646916944253,0.05107436,2604.0,2603.2,0.43507941]
[1646916944453,0.05107436,2604.0,2603.2,2.34316473]
[1646916944654,0.05107436,2604.0,2603.3,1.90776532]
[1646916944955,0.05107436,2604.0,2603.4,1.9207]
[1646916945553,0.05107436,2604.0,2603.5,0.96035]
[1646916946997,0.05723782,2603.9,2603.5,0.96035]
[1646916947294,0.05723782,2603.9,2603.5,1.90778532]
[1646916947497,0.05723782,2603.9,2603.6,1.50043532]
[1646916947701,3.5,2604.1,2603.8,0.137209]
[1646916947898,3.5,2604.1,2603.9,0.553]
[1646916948099,0.05996033,2604.8,2603.9,1.50043532]
[1646916948299,1.06725742,2604.9,2603.9,2.6626118]
[1646916948599,1.06725742,2604.9,2604.0,2.95349239]
[1646916948797,1.06725742,2604.9,2604.2,0.06215565]
[1646916949003,1.06725742,2604.9,2604.2,2.47278]
[1646916949199,0.04858197,2604.8,2604.2,1.51283]
[1646916949600,0.26767882,2606.1,2605.8,0.85223074]
[1646916949801,0.85348765,2605.4,2605.3,2.87969]
[1646916950054,1.64967616,2605.4,2605.3,2.87969]
[1646916950354,0.19393037,2606.8,2605.3,6.91953896]
[1646916950355,0.1919,2605.9,2605.3,6.91953896]
[1646916950553,4.53980608,2607.2,2605.4,27.57995896]
[1646916950751,1.10087219,2606.9,2606.0,4.01696283]
[1646916950951,0.71559466,2606.6,2606.1,0.07766195]
[1646916951152,6.9453756,2607.0,2606.2,0.25]
[1646916951351,6.85295017,2609.1,2606.4,0.95947]
[1646916951555,0.43352143,2607.7,2606.4,2.15522]
[1646916951751,0.18888445,2608.5,2606.8,1.91901]
[1646916951954,0.04356388,2608.3,2606.9,1.19555]
[1646916952153,11.94274721,2608.4,2607.2,0.25]
[1646916952154,0.05017455,2607.9,2607.2,0.25]
[1646916952353,0.1917,2608.1,2607.9,3.5]
[1646916952556,0.45123,2608.6,2608.0,0.25]
[1646916952756,0.95922,2608.8,2608.0,0.25]
[1646916952757,2.56144335,2609.4,2608.0,1.44504]
[1646916952960,0.01490845,2608.1,2608.0,3.36339]
[1646916953161,0.01490845,2608.1,2608.0,4.33046797]
[1646916953357,3.16755365,2609.9,2608.8,1.02323413]
[1646916953358,0.9590441,2609.7,2608.8,1.02323413]
[1646916953695,1.05984382,2609.9,2608.8,1.23727732]
[1646916953895,13.66805,2609.3,2608.8,1.23727732]
[1646916954106,0.3,2610.1,2608.8,1.48727732]
[1646916954298,4.24314429,2610.7,2608.8,1.44468]
[1646916954499,1.9181295,2609.9,2609.4,0.25]
[1646916954696,1.9181295,2609.9,2609.4,0.29384]
[1646916954896,11.75,2609.7,2609.4,0.29384]
[1646916955096,0.7487574,2610.8,2609.4,0.29384]
[1646916955296,2.15462686,2609.9,2609.4,0.29384]
[1646916955497,2.87817461,2610.6,2609.9,3.5]
[1646916955695,9.59215,2610.4,2609.9,0.13042386]
[1646916955899,11.75,2610.2,2609.9,0.13042386]
[1646916956096,0.553,2610.1,2609.9,0.13042386]
[1646916956297,0.553,2610.1,2608.5,1.88010511]
[1646916956498,0.19393037,2609.4,2606.6,0.07152016]
[1646916956702,0.56551317,2609.3,2605.8,0.135945]
[1646916956898,2.87848,2608.7,2607.1,0.25]
[1646916957099,0.9595,2608.5,2607.1,0.25]
[1646916957558,0.15250532,2609.1,2608.6,9.59391]
[1646916957754,0.01496982,2608.9,2608.5,0.25]
[1646916957955,6.56567334,2609.4,2609.3,1.97271688]
[1646916958254,7.61260371,2609.4,2608.5,0.25]
[1646916958454,0.94105466,2609.6,2609.1,3.83772]
[1646916958656,0.3,2609.4,2609.2,0.25]
[1646916958855,9.59247,2610.1,2609.3,3.5]
[1646916959055,0.95893,2609.9,2609.3,3.5]
[1646916959455,0.95893,2609.9,2609.4,0.25]
[1646916959655,0.958931,2609.9,2609.4,0.25]
[1646916959853,3.3306322,2610.1,2609.9,2.541069]
[1646916959854,5.17095959,2610.1,2609.9,2.541069]
[1646916960055,11.16699959,2610.1,2609.5,3.83585]
[1646916960354,11.46699959,2610.1,2609.5,3.83585]
[1646916960555,3.83577,2610.2,2609.5,3.83585]
[1646916960957,2.14637192,2610.1,2609.5,4.8312566]
[1646916961201,2.87698,2610.0,2609.6,3.83586]
[1646916961403,2.87698,2610.0,2609.5,1.9171]
[1646916961404,11.46568401,2609.8,2609.5,1.9171]
[1646916961604,0.553,2609.7,2609.5,1.9171]
[1646916961807,0.553,2609.6,2609.5,1.9171]
[1646916962002,0.553,2609.6,2609.1,19.42796]
[1646916962202,0.95915,2609.3,2609.1,19.42796]
[1646916962402,0.553,2609.2,2609.1,19.42796]
[1646916962606,3.20579267,2609.5,2609.1,19.17796]
[1646916962808,0.553,2609.4,2609.1,19.17796]
[1646916963108,6.38011,2609.3,2609.1,0.25]
[1646916963310,0.553,2609.2,2609.1,0.25]
[1646916963708,4.053,2609.2,2609.1,0.25]
[1646916963912,11.348,2609.2,2609.1,2.87788]
[1646916964109,12.135,2609.1,2609.0,1.35204917]
[1646916964311,12.135,2609.1,2606.5,0.01288284]
[1646916964312,0.385,2608.9,2606.5,0.01288284]
[1646916964508,0.385,2608.9,2607.0,3.57220358]
[1646916964509,0.385,2608.7,2607.0,3.57220358]
[1646916964712,0.385,2608.2,2607.1,0.09952917]
[1646916964971,0.385,2608.2,2607.1,19.28829917]
[1646916965157,0.385,2608.0,2607.2,0.07585065]
[1646916965356,1.0,2608.3,2607.1,20.18417374]
[1646916965557,0.553,2608.0,2607.1,20.18417374]
[1646916965958,2.71349027,2608.3,2607.1,20.18417374]
[1646916966160,12.70949,2607.9,2607.0,2.87846]
[1646916966357,15.91412349,2607.9,2607.0,2.87846]
[1646916966558,13.43563037,2607.9,2607.0,2.87846]
[1646916966758,13.17856044,2607.9,2607.0,2.87846]
[1646916967160,0.97841441,2607.3,2607.0,2.87846]
[1646916967358,0.95983,2607.2,2607.0,2.87846]
[1646916968261,1.25983,2607.2,2607.0,2.87846]
[1646916968462,1.25983,2607.2,2607.0,2.88221479]
[1646916968695,3.5,2607.1,2607.0,2.88221479]
[1646916969095,4.5,2607.1,2607.0,2.88221479]
[1646916969297,74.0037,2607.0,2606.9,3.1288]
[1646916969501,74.0037,2607.0,2606.8,0.95978]
[1646916969502,75.51672,2607.0,2606.8,0.95978]
[1646916969695,3.5,2606.9,2606.6,3.8384]
[1646916969896,0.553,2606.8,2606.6,2.13239608]
[1646916970095,0.553,2606.8,2606.1,0.25]
[1646916970096,3.5,2606.7,2606.1,0.25]
[1646916970297,0.94010611,2606.6,2606.1,0.25]
[1646916970496,3.5,2606.5,2606.1,0.25]
[1646916970698,0.96012,2606.4,2606.1,0.25]
[1646916970898,3.5,2606.3,2606.1,0.25]
[1646916971298,4.8,2606.3,2606.1,0.25]
[1646916971500,1.51312,2606.4,2606.1,0.25]
[1646916971501,3.5,2606.2,2606.1,0.25]
[1646916971800,3.5,2606.2,2606.0,0.9601]
[1646916972002,3.5,2606.2,2605.9,1.9202]
[1646916972198,0.96029,2606.1,2605.9,1.9202]
[1646916972462,3.5,2606.0,2605.9,1.9202]
[1646916973254,3.8,2606.0,2605.9,1.9202]
[1646916973459,1.3,2606.0,2605.9,1.9202]
[1646916973858,0.3,2606.0,2605.9,1.9202]
[1646916974059,3.8,2606.0,2605.9,1.9202]
[1646916974259,4.8,2606.0,2605.9,1.9202]
[1646916975256,1.3,2606.0,2605.9,1.9202]
[1646916975658,0.3,2606.0,2605.9,1.9202]
[1646916975859,4.31521575,2606.1,2605.9,1.9202]
[1646916976307,3.35495575,2606.1,2605.9,1.9202]
[1646916977008,3.35495575,2606.1,2605.9,1.92394764]
[1646916977608,2.35495575,2606.1,2605.9,1.92394764]
[1646916977811,2.35495575,2606.1,2605.9,1.94055952]
[1646916977812,3.35495575,2606.1,2605.9,1.94055952]
[1646916978012,2.35495575,2606.1,2605.9,1.94430716]
[1646916978214,3.35495575,2606.1,2605.9,1.94430716]
[1646916978413,2.35495575,2606.1,2605.9,1.94430716]
[1646916978613,3.35495575,2606.1,2605.9,1.94430716]
[1646916978814,2.35495575,2606.1,2605.9,1.94430716]
[1646916979014,3.35495575,2606.1,2605.9,1.94055952]
[1646916979213,2.35495575,2606.1,2605.9,1.94430716]
[1646916979414,3.35495575,2606.1,2605.9,1.94430716]
[1646916979821,6.85495575,2606.1,2605.9,1.94430716]
[1646916980288,6.85495575,2606.1,2605.9,1.94055952]
[1646916980487,6.85495575,2606.1,2605.9,1.94419473]
[1646916981288,2.26029,2606.1,2605.9,1.94419473]
[1646916981492,0.96029,2606.1,2606.0,0.08341556]
[1646916981887,2.88086,2606.2,2606.0,0.08341556]
[1646916982286,1.02230532,2606.1,2606.0,0.08341556]
[1646916982490,1.98259532,2606.1,2606.0,0.08341556]
[1646916982689,5.48259532,2606.1,2606.0,0.08341556]
[1646916982888,1.98259532,2606.1,2606.0,0.08705071]
[1646916983089,3.28259532,2606.1,2606.0,0.08705071]
[1646916983699,2.28259532,2606.1,2606.0,0.08705071]
[1646916983902,3.28259532,2606.1,2606.0,0.08341556]
[1646916984104,2.28259532,2606.1,2606.0,0.08341556]
[1646916984305,3.28259532,2606.1,2606.0,0.08341556]
[1646916984504,2.28259532,2606.1,2606.0,0.08341556]
[1646916984704,3.28259532,2606.1,2606.0,0.08341556]
[1646916984906,2.28259532,2606.1,2606.0,0.08341556]
[1646916985111,3.28259532,2606.1,2606.0,0.08341556]
[1646916985309,2.28259532,2606.1,2606.0,0.08341556]
[1646916985507,3.28259532,2606.1,2606.0,0.08341556]
[1646916985707,2.28259532,2606.1,2606.0,0.08341556]
[1646916985909,3.28259532,2606.1,2606.0,0.08341556]
[1646916986107,3.23259532,2606.1,2606.0,0.08341556]
[1646916986608,6.73259532,2606.1,2606.0,0.08341556]
[1646916987208,2.21029,2606.1,2606.0,0.08341556]
[1646916987658,1.21029,2606.1,2606.0,0.08341556]
[1646916988857,0.96029,2606.1,2606.0,0.08341556]
[1646916989056,1.91989,2606.5,2606.0,0.08341556]
[1646916989057,0.95994,2606.3,2606.0,0.08341556]
[1646916989255,0.95994,2606.3,2606.0,0.33341556]
[1646916989858,1.91989,2606.5,2606.0,0.12047157]
[1646916990058,1.91989,2606.5,2606.0,0.08341556]
[1646916990261,1.91989,2606.5,2606.0,0.08678783]
[1646916990658,1.91989,2606.5,2606.3,0.98005694]
[1646916990857,1.91989,2606.5,2606.4,0.07367306]
[1646916990858,0.3,2606.5,2606.4,0.07367306]
[1646916991060,2.00956916,2607.0,2606.4,0.07367306]
[1646916991302,0.49949303,2606.9,2606.4,0.07367306]
[1646916991710,1.50319303,2607.0,2606.4,0.07367306]
[1646916991911,0.49949303,2606.9,2606.4,0.07367306]
[1646916992110,0.49949303,2606.8,2606.4,0.07367306]
[1646916992310,1.25977,2606.9,2606.4,0.07367306]
[1646916992513,0.95977,2606.9,2606.4,0.45867306]
[1646916992815,1.08873075,2607.7,2606.7,0.46323288]
[1646916993010,0.49995509,2607.5,2606.7,0.46323288]
[1646916993211,0.49995509,2607.4,2606.7,0.46323288]
[1646916993411,0.95965,2607.2,2606.7,0.46323288]
[1646916993609,1.91929,2607.4,2606.7,0.46323288]
[1646916993811,4.00011246,2607.3,2606.7,0.07823288]
[1646916994010,0.93863037,2607.2,2606.7,0.07823288]
[1646916994212,6.12530075,2607.1,2606.7,0.07823288]
[1646916994411,0.7447,2607.0,2606.7,0.07823288]
[1646916994611,3.5,2606.9,2606.7,0.07823288]
[1646916994948,4.8,2606.9,2606.8,3.50352981]
[1646916995354,2.55915544,2606.7,2606.5,1.60744151]
[1646916995549,4.053,2606.6,2606.5,1.60744151]
[1646916995954,5.053,2606.6,2606.5,1.60744151]
[1646916996355,5.053,2606.6,2606.5,1.63547745]
[1646916997354,5.053,2606.6,2606.5,5.13547745]
[1646916998800,1.553,2606.6,2606.5,5.13547745]
[1646916999002,1.0,2606.6,2606.5,5.13547745]
[1646916999200,3.85915544,2606.7,2606.5,5.13547745]
[1646917000205,7.35915544,2606.7,2606.5,5.13547745]
[1646917000408,7.29915544,2606.7,2606.5,5.13547745]
[1646917000608,3.5,2606.6,2606.5,5.13547745]
[1646917000803,4.5,2606.6,2606.5,5.13547745]
[1646917001004,4.5,2606.6,2606.5,5.13925834]
[1646917002006,1.0,2606.6,2606.5,5.13547745]
[1646917002205,3.35215544,2606.7,2606.5,5.13547745]
[1646917002206,3.79915544,2606.7,2606.5,5.13547745]
[1646917003556,3.79915544,2606.7,2606.5,5.13918745]
[1646917003755,3.55915544,2606.7,2606.6,3.26]
[1646917005658,7.05915544,2606.7,2606.6,3.26]
[1646917006500,7.76438619,2606.7,2606.5,1.63918742]
[1646917006702,8.06438619,2606.7,2606.5,5.13547745]
[1646917007100,8.06438619,2606.7,2606.5,5.13864121]
[1646917007507,3.5,2606.6,2606.5,5.08069192]
[1646917007705,4.5,2606.6,2606.5,5.08069192]
[1646917007906,4.5,2606.6,2606.5,5.07752816]
[1646917007907,1.0,2606.6,2606.5,5.07752816]
[1646917008308,4.35079339,2606.7,2606.5,5.07752816]
[1646917008309,5.35079339,2606.7,2606.5,5.07752816]
[1646917008511,5.35079339,2606.7,2606.5,1.57752816]
[1646917008512,0.93863795,2606.6,2606.5,1.57752816]
[1646917008710,1.49163795,2606.6,2606.5,1.57752816]
[1646917009107,4.99163795,2606.6,2606.5,1.57752816]
[1646917009310,5.053,2606.6,2606.5,1.57752816]
[1646917009508,1.553,2606.6,2606.5,1.57752816]
[1646917009708,0.553,2606.6,2606.5,1.57752816]
[1646917009951,4.053,2606.6,2606.4,0.00316382]
[1646917010149,4.46024,2606.5,2606.4,0.00316382]
[1646917010350,5.31324,2606.5,2606.0,2.88051]
[1646917010549,0.71611986,2606.1,2606.0,2.88051]
[1646917010748,1.01611986,2606.1,2606.0,2.88051]
[1646917012653,2.95652851,2606.2,2606.0,2.88051]
[1646917012853,0.96024,2606.2,2606.0,2.88051]
[1646917013055,0.71693682,2606.1,2606.0,2.88051]
[1646917013253,1.96024,2606.2,2606.0,2.88051]
[1646917013254,1.0,2606.2,2606.0,2.88051]
[1646917013556,4.90815848,2606.6,2606.0,2.88051]
[1646917013802,0.96024,2606.2,2606.0,2.88051]
[1646917014002,0.96024,2606.2,2606.1,1.0935721]
[1646917014401,3.96731392,2606.7,2606.1,1.0935721]
[1646917014804,4.26731392,2606.7,2606.1,1.0935721]
[1646917015003,2.85915544,2606.7,2606.2,0.08533671]
[1646917015203,4.99835648,2606.7,2606.2,0.08533671]
[1646917015403,1.92,2606.6,2606.3,0.00138764]
[1646917015602,1.92,2606.6,2606.4,3.5]
[1646917016605,1.92,2606.6,2606.4,3.50138759]
[1646917017657,1.92,2606.6,2606.4,3.5]
[1646917017858,1.92,2606.6,2606.4,3.50369179]
[1646917018660,3.5,2606.5,2606.4,3.50369179]
[1646917018863,5.90815848,2606.5,2606.4,3.5]
[1646917019059,6.20815848,2606.5,2606.4,3.50369179]
[1646917019758,6.20815848,2606.5,2606.4,3.4972347]
[1646917019960,6.20815848,2606.5,2606.4,3.49354291]
[1646917020360,6.76115848,2606.5,2606.4,3.49354291]
[1646917020564,17.103,2606.5,2606.3,9.182e-05]
[1646917020760,17.103,2606.5,2605.9,3.5]
[1646917020761,74.0,2606.3,2605.9,3.5]
[1646917020960,1.43481987,2606.0,2605.9,3.5]
[1646917021217,5.78781987,2606.0,2605.9,3.5]
[1646917021805,6.78781987,2606.0,2605.9,3.5]
[1646917023810,7.35807255,2606.0,2605.9,3.5]
[1646917024411,5.92325268,2606.0,2605.9,3.5]
[1646917025251,0.95566671,2606.0,2605.9,3.5]
[1646917025453,0.96047,2606.1,2605.9,3.5]
[1646917025851,0.96047,2606.1,2606.0,0.07748049]
[1646917026253,1.91613671,2606.1,2606.0,0.07748049]
[1646917026452,0.96047,2606.1,2606.0,0.07748049]
[1646917026956,4.46047,2606.1,2606.0,0.07748049]
[1646917027154,1.26047,2606.1,2606.0,0.07748049]
[1646917027353,2.23028191,2606.1,2606.0,0.07748049]
[1646917027559,1.23028191,2606.1,2606.0,0.07748049]
[1646917028357,2.18548774,2606.1,2606.0,0.07748049]
[1646917028557,3.88067218,2606.2,2606.0,0.07748049]
[1646917029003,5.31549205,2606.2,2606.0,0.07748049]
[1646917029402,0.96047,2606.1,2606.0,0.07748049]
[1646917029805,0.96047,2606.1,2606.0,0.08114869]
[1646917030104,2.92173,2606.2,2606.0,0.07139005]
[1646917030305,1.92173,2606.2,2606.0,0.07139005]
[1646917030603,2.92173,2606.2,2606.0,0.07139005]
[1646917030803,0.96047,2606.1,2606.0,0.07139005]
[1646917031204,1.0,2606.4,2606.0,0.07139005]
[1646917031205,2.55915544,2606.7,2606.0,1.03138005]
[1646917031404,2.55915544,2606.7,2606.0,0.07139005]
[1646917031809,2.55915544,2606.7,2606.5,3.5]
[1646917032104,4.47912544,2606.7,2606.5,3.5]
[1646917033862,0.37670164,2606.6,2606.5,3.5]
[1646917037108,0.24590164,2606.6,2606.5,3.5]
[1646917037305,4.44517241,2606.7,2606.5,3.5]
[1646917037508,3.48028982,2606.7,2606.5,3.5]
[1646917037911,3.48028982,2606.7,2606.6,1.03263984]
[1646917040652,2.52520241,2606.7,2606.6,1.03263984]
[1646917041157,3.48028982,2606.7,2606.6,1.03263984]
[1646917041353,3.48028982,2606.7,2606.5,4.45994]
[1646917041753,4.44013982,2606.7,2606.5,4.45994]
[1646917042157,4.40802762,2606.7,2606.5,4.45994]
[1646917042354,3.45294021,2606.7,2606.5,4.45994]
[1646917043158,0.71652981,2606.6,2606.5,5.3520877]
[1646917043904,4.40802762,2606.7,2606.5,4.45994]
[1646917044305,0.95508741,2606.6,2606.5,4.45994]
[1646917044906,3.45294021,2606.7,2606.5,5.4197785]
[1646917045405,3.45294021,2606.7,2606.6,1.04432853]
[1646917047452,3.45294021,2606.7,2606.5,4.45994]
[1646917047453,3.42399923,2606.7,2606.5,4.45994]
[1646917047658,2.46414923,2606.7,2606.5,5.4198042]
[1646917048256,0.95979,2606.9,2606.5,5.4198042]
[1646917048257,0.71625642,2606.6,2606.5,5.4198042]
[1646917049959,0.71625642,2606.6,2606.5,3.71415235]
[1646917051400,0.95985,2606.7,2606.5,3.71415235]
[1646917052003,0.95985,2606.7,2606.5,2.75428815]
[1646917052004,4.93364228,2606.6,2606.5,2.75428815]
[1646917052306,2.62544228,2606.6,2606.5,1.32423559]
[1646917052508,2.43364228,2606.6,2606.5,1.32423559]
[1646917052706,1.43364228,2606.6,2606.5,1.32423559]
[1646917053608,3.58529228,2606.7,2606.5,1.32423559]
[1646917054207,2.39349228,2606.7,2606.5,1.32423559]
[1646917054409,0.95985,2606.7,2606.5,1.32423559]
[1646917055057,0.95985,2606.7,2606.5,2.28417559]
[1646917056160,2.39349228,2606.7,2606.5,2.28417559]
[1646917056359,5.89349228,2606.7,2606.5,2.28417559]
[1646917056558,2.39349228,2606.7,2606.5,2.28417559]
[1646917057160,0.29270947,2606.6,2606.5,2.28417559]
[1646917057362,1.72635175,2606.6,2606.5,1.32423559]
[1646917057564,0.29270947,2606.6,2606.5,1.32423559]
[1646917059818,0.29270947,2606.6,2606.5,2.52596797]
[1646917060021,1.24774615,2606.6,2606.5,2.52596797]
[1646917060818,1.24774615,2606.6,2606.5,1.32423559]
[1646917063062,0.29270947,2606.6,2606.5,1.32423559]
[1646917063262,0.29270947,2606.6,2606.5,2.28410559]
[1646917063461,2.80155425,2606.9,2606.5,2.28410559]
[1646917064260,5.41979,2606.9,2606.5,2.28410559]
[1646917064462,0.95985,2606.7,2606.5,2.28410559]
[1646917067004,3.83112343,2606.9,2606.5,2.28410559]
[1646917067204,4.89394188,2606.9,2606.5,2.28410559]
[1646917067405,3.28260845,2606.9,2606.5,2.28410559]
[1646917067607,6.38574188,2606.9,2606.5,2.28410559]
[1646917068111,6.19394188,2606.9,2606.5,2.28410559]
[1646917068308,4.28260845,2606.9,2606.5,2.28410559]
[1646917068507,0.95985,2606.7,2606.5,2.28410559]
[1646917068709,4.47440845,2606.9,2606.5,2.28410559]
[1646917069109,4.28260845,2606.9,2606.5,2.28410559]
[1646917069308,4.28260845,2606.9,2606.5,9.78410559]
[1646917069512,3.21979,2606.9,2606.5,9.78410559]
[1646917069708,0.95985,2606.7,2606.5,9.78410559]
[1646917069963,5.79144343,2607.0,2606.5,8.07848075]
[1646917070667,0.91082864,2606.9,2606.5,8.07848075]
[1646917070865,2.83061864,2606.9,2606.5,8.07848075]
[1646917071264,3.83061864,2606.9,2606.5,8.07848075]
[1646917071464,1.43395607,2606.8,2606.5,8.07848075]
[1646917071866,3.80171864,2606.9,2606.5,8.07848075]
[1646917072166,0.95985,2606.7,2606.6,3.5]
[1646917072365,2.91979,2606.9,2606.6,3.5]
[1646917073178,0.95616109,2606.7,2606.6,7.0]
[1646917073375,0.00351801,2607.2,2606.9,3.5]
[1646917073572,0.56757377,2607.9,2606.9,3.5]
[1646917073573,3.83901,2608.3,2606.9,46.37862]
[1646917073828,4.41781809,2608.3,2607.6,7.5]
[1646917074030,4.41781809,2608.3,2607.6,4.94258651]
[1646917074226,4.41781809,2608.3,2607.6,5.19258651]
[1646917074427,5.30036701,2608.3,2607.9,3.5]
[1646917074628,1.91909,2608.0,2607.9,3.5]
[1646917075228,4.41781809,2608.3,2607.9,3.5]
[1646917075935,1.91909,2608.0,2607.9,3.5]
[1646917076130,3.83857,2608.6,2607.9,3.5]
[1646917076131,3.83960137,2608.6,2607.9,3.5]
[1646917076331,7.98294572,2609.0,2607.9,3.5]
[1646917076332,0.00103137,2608.8,2607.9,3.5]
[1646917076527,4.42514653,2609.0,2607.9,3.5]
[1646917076728,4.42411516,2609.0,2607.9,3.5]
[1646917077229,0.95943,2608.8,2608.6,3.5]
[1646917077460,2.41349425,2608.3,2607.8,0.95941]
[1646917077865,2.41349425,2608.3,2607.8,1.20941]
[1646917078664,2.41349425,2608.3,2608.1,1.0172397]
[1646917079064,0.00379375,2608.2,2608.1,1.0172397]
[1646917079464,0.96333375,2608.2,2608.1,4.5172397]
[1646917079864,5.33256425,2608.3,2608.1,4.5172397]
[1646917080064,5.89801168,2608.3,2608.1,4.5172397]
[1646917080264,5.90180537,2608.3,2608.1,3.5]
[1646917080464,0.95954,2608.2,2608.1,3.5]
[1646917080664,2.86752947,2608.2,2608.1,3.5]
[1646917080866,5.90180537,2608.3,2608.1,3.5]
[1646917081307,5.89801168,2608.3,2608.1,3.5]
[1646917082311,5.89801168,2608.3,2608.1,3.58207978]
[1646917082510,0.95954,2608.2,2608.1,3.58207978]
[1646917083420,0.95954,2608.2,2608.1,3.5]
[1646917083619,0.10145168,2608.3,2608.1,3.5]
[1646917084016,0.0147173,2608.7,2608.1,3.5]
[1646917084215,1.42942149,2608.2,2608.1,3.5]
[1646917084416,0.95954,2608.2,2608.1,3.5]
[1646917084617,2.8929973,2608.7,2608.1,3.5]
[1646917084816,1.42932029,2608.2,2608.1,3.5]
[1646917085258,0.95941,2608.6,2608.1,3.5]
[1646917086056,0.95941,2608.6,2608.4,1.10279254]
[1646917086260,0.95941,2608.6,2608.5,3.5]
[1646917087961,2.8621768,2608.6,2608.5,3.5]
[1646917089006,2.8621768,2608.6,2608.5,0.94364075]
[1646917089208,2.88178239,2608.7,2608.5,0.94364075]
[1646917089609,0.00375239,2608.8,2608.5,0.94364075]
[1646917089811,1.00375239,2608.8,2608.5,0.94364075]
[1646917090011,0.00212667,2608.7,2608.5,0.94364075]
[1646917090217,0.88617516,2609.0,2608.5,0.94364075]
[1646917091813,2.87828,2608.7,2608.6,0.25]
[1646917092013,2.87828,2608.7,2608.6,0.09761226]
[1646917092312,2.87828,2608.7,2608.5,1.47007851]
[1646917092313,4.4630103,2608.7,2608.5,1.47007851]
[1646917092564,3.4630103,2608.7,2608.5,3.08573477]
[1646917092764,0.3,2608.6,2608.4,1.16540477]
[1646917092963,0.553,2608.5,2608.4,1.16540477]
[1646917093363,2.47221,2608.5,2607.9,1.15391817]
[1646917093564,2.47221,2608.5,2608.0,0.0795853]
[1646917093763,2.47221,2608.5,2608.0,1.0391953]
[1646917094165,11.75,2608.3,2608.1,2.16999051]
[1646917094365,12.303,2608.2,2608.1,2.16999051]
[1646917094766,13.303,2608.2,2608.1,3.5]
[1646917094964,1.553,2608.2,2608.1,3.5]
[1646917095164,1.553,2608.2,2608.0,0.95961]
[1646917095165,2.5127,2608.2,2608.0,0.95961]
[1646917096217,4.4126609,2608.2,2608.0,0.95961]
[1646917096808,2.0930075,2608.2,2608.1,0.07476394]
[1646917097009,1.5400075,2608.2,2608.1,0.07476394]
[1646917097412,2.38459216,2608.2,2608.1,0.07476394]
[1646917097613,0.9597,2608.2,2608.1,0.07476394]
[1646917099218,2.38459216,2608.2,2608.1,0.07476394]
[1646917101061,3.45430277,2608.3,2608.1,0.07476394]
[1646917101361,0.03228979,2608.2,2608.1,0.07476394]
[1646917101559,3.45430277,2608.3,2608.1,0.07476394]
[1646917101960,0.9597,2608.2,2608.1,0.07476394]
[1646917102162,3.40430277,2608.3,2608.1,0.07476394]
[1646917102564,4.40430277,2608.3,2608.1,0.07476394]
[1646917102766,64.5,2608.1,2608.0,15.50356839]
[1646917102965,67.90149865,2608.1,2608.0,15.50356839]
[1646917103165,70.29561955,2608.1,2608.0,15.50356839]
[1646917103364,70.29561955,2608.1,2608.0,9.74509839]
[1646917103809,70.29561955,2608.1,2607.6,0.25]
[1646917103810,64.5035,2607.9,2607.6,0.25]
[1646917104010,0.95982,2607.7,2607.5,1.28215054]
[1646917104810,2.0995453,2607.7,2607.5,1.28215054]
[1646917105008,0.95982,2607.7,2607.5,1.28215054]
[1646917105709,0.95982,2607.7,2607.5,1.28356487]
[1646917105912,0.95982,2607.7,2607.5,1.35572621]
[1646917106310,0.95982,2607.7,2607.5,1.34926646]
[1646917106311,1.94761072,2607.7,2607.5,1.34926646]
[1646917106511,1.94761072,2607.7,2607.5,0.74097044]
[1646917106512,0.553,2607.6,2607.5,0.74097044]
[1646917106916,60.0,2607.5,2607.4,0.95981]
[1646917107111,60.43352443,2607.5,2607.4,4.45981]
[1646917107557,61.82764533,2607.5,2607.4,0.95981]
[1646917107959,62.38064533,2607.5,2607.4,0.95981]
[1646917108359,61.98652443,2607.5,2607.1,7.33931]
[1646917108559,1.39353443,2607.4,2607.1,7.33931]
[1646917108758,2.78765533,2607.4,2607.1,7.33931]
[1646917109159,5.21479447,2607.4,2607.1,7.34078949]
[1646917109360,1.04713025,2607.3,2607.1,7.34078949]
[1646917109564,2.47426939,2607.3,2607.1,7.34078949]
[1646917109760,5.35434939,2607.3,2607.1,7.34078949]
[1646917110163,5.35434939,2607.3,2607.1,7.33931]
[1646917110460,6.35434939,2607.3,2607.1,3.83438123]
[1646917111305,6.35434939,2607.3,2607.1,3.83290171]
[1646917111708,6.35434939,2607.3,2607.1,3.83650268]
[1646917112511,6.35434939,2607.3,2607.1,3.83290171]
[1646917112713,1.42713914,2607.2,2607.1,3.83649194]
[1646917112913,1.42713914,2607.2,2607.1,3.81899194]
[1646917113115,5.48021025,2607.3,2607.1,3.13052156]
[1646917113315,72.5035,2607.1,2606.7,0.07479411]
[1646917113515,71.5,2606.7,2606.5,3.34348411]
[1646917113714,0.43352443,2606.6,2606.5,2.75280911]
[1646917113913,1.38594443,2606.6,2606.5,2.75280911]
[1646917114513,0.95242,2606.6,2606.5,2.75280911]
[1646917115555,3.12222826,2606.7,2606.5,2.75280911]
[1646917115755,2.12222826,2606.7,2606.5,2.75280911]
[1646917115956,3.12222826,2606.7,2606.5,2.75280911]
[1646917116157,0.95210323,2606.6,2606.5,2.75280911]
[1646917116358,3.69056571,2606.7,2606.5,2.75661232]
[1646917116560,0.95190375,2606.6,2606.5,2.75661232]
[1646917117361,0.95190375,2606.6,2606.5,2.75280911]
[1646917118363,4.64246946,2606.7,2606.5,2.75280911]
[1646917119610,1.91208375,2606.7,2606.5,2.75280911]
[1646917119811,0.96018,2606.7,2606.6,9.10083424]